bitfinex-derivatives/quotes_BTCF0:USTF0_20250108
["timestamp","ask_amount","ask_price","bid_price","bid_amount"]
[1736340454760,0.49534192,95001.0,95000.0,1.49695215]
[1736340454969,0.79534192,95001.0,95000.0,1.49695215]
[1736340455167,0.49534192,95001.0,95000.0,1.44193335]
[1736340458371,0.43122257,95001.0,95000.0,1.44193335]
[1736340459071,0.01789161,95001.0,95000.0,1.80273335]
[1736340461877,0.17467786,95001.0,95000.0,1.80273335]
[1736340462388,0.17455982,95001.0,95000.0,1.80273335]
[1736340462586,0.17464729,95001.0,95000.0,1.80273335]
[1736340462882,0.01786104,95001.0,95000.0,1.80273335]
[1736340464275,0.00408747,95001.0,95000.0,1.80273335]
[1736340469592,0.1,95020.0,95000.0,1.80273335]
[1736340469891,0.052634,95028.0,95019.0,0.3608]
[1736340470090,0.052634,95028.0,95027.0,0.3608]
[1736340470384,0.22016864,95029.0,95027.0,0.3608]
[1736340470593,4.925e-05,95028.0,95027.0,0.413434]
[1736340470779,0.22016864,95029.0,95027.0,0.413434]
[1736340470980,0.25175828,95034.0,95033.0,0.052631]
[1736340471181,0.25175828,95034.0,95033.0,0.413431]
[1736340471389,0.01368363,95036.0,95033.0,0.413431]
[1736340471593,0.10160001,95040.0,95033.0,0.413431]
[1736340471799,0.15422801,95040.0,95033.0,0.413431]
[1736340472093,0.152628,95040.0,95039.0,0.3608]
[1736340472481,0.1665958,95040.0,95039.0,0.3608]
[1736340473387,0.1139678,95040.0,95039.0,0.3608]
[1736340473587,0.1139678,95040.0,95039.0,0.413428]
[1736340473784,0.1199678,95040.0,95039.0,0.413428]
[1736340474993,0.1309678,95040.0,95039.0,0.415428]
[1736340475397,0.1835948,95040.0,95039.0,0.3628]
[1736340478598,0.1835948,95040.0,95030.0,0.3608]
[1736340478792,0.0835,95039.0,95018.0,0.3608]
[1736340478992,0.10641821,95030.0,95018.0,0.3608]
[1736340479195,0.052639,95020.0,95018.0,0.3608]
[1736340480084,0.084,95029.0,95018.0,0.3608]
[1736340480294,0.052634,95028.0,95026.0,0.3608]
[1736340480889,0.084,95029.0,95026.0,0.3608]
[1736340481092,0.10070086,95029.0,95026.0,0.413435]
[1736340481794,0.10070086,95029.0,95026.0,0.3608]
[1736340482099,0.009,95028.0,95026.0,0.3618]
[1736340482499,0.10970086,95029.0,95026.0,0.3618]
[1736340482994,0.052634,95028.0,95026.0,0.3618]
[1736340483191,0.057634,95028.0,95026.0,0.3628]
[1736340483395,0.005,95028.0,95026.0,0.776235]
[1736340483591,0.005,95028.0,95027.0,0.0835]
[1736340483790,0.009,95029.0,95027.0,0.0835]
[1736340483989,0.1,95040.0,95039.0,0.052628]
[1736340484190,0.1,95040.0,95039.0,0.413428]
[1736340484999,0.1585,95059.0,95039.0,0.3608]
[1736340485200,0.052619,95055.0,95053.0,0.3608]
[1736340485602,0.17539499,95059.0,95053.0,0.3608]
[1736340486594,0.009,95055.0,95053.0,0.3618]
[1736340488106,0.012,95055.0,95053.0,0.3618]
[1736340488802,0.3608,95054.0,95039.0,0.3608]
[1736340489002,0.052625,95044.0,95039.0,0.3608]
[1736340489302,0.052626,95043.0,95039.0,0.3608]
[1736340489502,0.052626,95043.0,95036.0,0.052629]
[1736340489897,0.052626,95043.0,95037.0,0.052629]
[1736340490304,0.15904121,95049.0,95038.0,0.052628]
[1736340490694,0.003,95043.0,95036.0,0.3608]
[1736340490895,0.003,95043.0,95039.0,0.052628]
[1736340491105,0.003,95043.0,95040.0,0.052627]
[1736340491992,0.003,95043.0,95036.0,0.3608]
[1736340492411,0.0174548,95043.0,95039.0,0.052628]
[1736340492596,0.052625,95044.0,95039.0,0.052628]
[1736340493191,0.001,95043.0,95039.0,0.052628]
[1736340493806,0.07057159,95044.0,95039.0,0.052628]
[1736340494404,0.01794659,95044.0,95036.0,0.3608]
[1736340494706,0.01794659,95044.0,95043.0,0.052626]
[1736340494911,0.21887816,95065.0,95043.0,0.052626]
[1736340495110,0.21887816,95065.0,95059.0,0.413417]
[1736340495302,0.11722116,95060.0,95059.0,0.413417]
[1736340496198,0.12522116,95060.0,95059.0,0.414417]
[1736340496401,0.108,95060.0,95059.0,0.414417]
[1736340497305,0.111,95060.0,95059.0,0.414417]
[1736340497906,0.111,95060.0,95059.0,0.3618]
[1736340498902,0.111,95060.0,95059.0,0.001]
[1736340500105,0.111,95060.0,95059.0,0.3618]
[1736340505411,0.111,95060.0,95059.0,0.001]
[1736340505611,0.111,95060.0,95041.0,0.3608]
[1736340505911,0.052627,95040.0,95036.0,0.052629]
[1736340506308,0.052628,95039.0,95033.0,0.052631]
[1736340506518,0.052628,95039.0,95034.0,0.05263]
[1736340506806,0.3608,95043.0,95034.0,0.05263]
[1736340507013,0.052631,95034.0,95028.0,0.052634]
[1736340507213,0.3608,95043.0,95029.0,0.052633]
[1736340507710,0.05263,95036.0,95034.0,0.003]
[1736340508412,0.0859,95035.0,95034.0,0.003]
[1736340510216,0.0859,95035.0,95024.0,0.3608]
[1736340510217,0.4467,95035.0,95024.0,0.3608]
[1736340510511,0.052633,95030.0,95029.0,0.004]
[1736340511105,0.0823,95034.0,95010.0,0.18807907]
[1736340511106,0.3608,95031.0,95010.0,0.18807907]
[1736340511311,0.052643,95013.0,95010.0,0.18807907]
[1736340511508,0.052643,95013.0,95006.0,0.052646]
[1736340511712,0.46873821,95020.0,95006.0,0.052646]
[1736340511910,0.46721821,95020.0,95000.0,1.44200704]
[1736340512113,0.052646,95007.0,95000.0,1.44200704]
[1736340513520,0.0857,95011.0,95000.0,1.44200704]
[1736340513521,0.052649,95001.0,95000.0,1.44200704]
[1736340514612,0.413449,95001.0,95000.0,1.44200704]
[1736340515011,0.417449,95001.0,95000.0,1.44200704]
[1736340515217,0.418449,95001.0,95000.0,1.44200704]
[1736340516208,0.418449,95001.0,95000.0,7.369e-05]
[1736340516413,0.05266,94982.0,94969.0,0.052666]
[1736340516718,0.052661,94980.0,94969.0,0.052666]
[1736340517117,0.052661,94980.0,94977.0,0.3608]
[1736340517425,7.369e-05,94979.0,94977.0,0.3608]
[1736340518717,7.369e-05,94979.0,94969.0,0.052666]
[1736340519425,7.369e-05,94979.0,94964.0,0.3608]
[1736340519613,0.052662,94977.0,94964.0,0.3608]
[1736340520625,0.052662,94977.0,94964.0,0.413469]
[1736340520916,0.00107369,94979.0,94964.0,0.413469]
[1736340521119,0.052663,94976.0,94964.0,0.413469]
[1736340522721,0.052663,94976.0,94964.0,0.3608]
[1736340523116,7.369e-05,94975.0,94958.0,0.00157948]
[1736340523721,0.052672,94960.0,94958.0,0.00157948]
[1736340524025,0.052679,94947.0,94946.0,0.4718]
[1736340524527,0.05275269,94947.0,94946.0,0.4718]
[1736340525230,7.369e-05,94947.0,94946.0,0.4718]
[1736340526626,0.00107369,94947.0,94946.0,0.4758]
[1736340526825,0.00107369,94947.0,94946.0,0.528479]
[1736340527227,0.00107369,94947.0,94946.0,0.531479]
[1736340527525,0.00107369,94947.0,94946.0,0.4788]
[1736340529325,0.02198062,94947.0,94946.0,0.4788]
[1736340529634,0.052667,94969.0,94946.0,0.4788]
[1736340529828,0.052667,94969.0,94954.0,0.3608]
[1736340530028,0.052676,94952.0,94946.0,0.4788]
[1736340530225,0.052676,94952.0,94951.0,0.3608]
[1736340531025,0.02125894,94969.0,94951.0,0.3608]
[1736340531225,0.0818,94970.0,94951.0,0.3608]
[1736340531226,0.052669,94966.0,94963.0,0.3608]
[1736340531921,0.103076,94970.0,94963.0,0.3608]
[1736340532221,0.052669,94965.0,94963.0,0.3608]
[1736340534337,0.053669,94965.0,94963.0,0.3608]
[1736340535532,0.053669,94965.0,94958.0,0.052672]
[1736340536034,0.05267,94964.0,94958.0,0.052672]
[1736340536230,0.001,94965.0,94952.0,0.0862]
[1736340536231,0.052673,94957.0,94952.0,0.0862]
[1736340536425,0.001,94965.0,94952.0,0.0862]
[1736340536626,0.052674,94956.0,94952.0,0.0862]
[1736340537324,0.052675,94954.0,94952.0,0.0862]
[1736340537725,0.052675,94954.0,94952.0,0.0882]
[1736340538528,0.052675,94954.0,94952.0,0.0922]
[1736340539130,0.07412989,94954.0,94952.0,0.0922]
[1736340540334,0.07412989,94954.0,94952.0,0.006]
[1736340541819,0.0847,94953.0,94952.0,0.006]
[1736340543230,0.052677,94950.0,94931.0,0.18807907]
[1736340543430,0.052684,94939.0,94931.0,0.18807907]
[1736340544036,0.083,94949.0,94930.0,0.413488]
[1736340544231,0.052684,94939.0,94930.0,0.413488]
[1736340544751,0.052687,94933.0,94930.0,0.3608]
[1736340545045,0.052687,94933.0,94931.0,0.005]
[1736340545636,0.15981537,94941.0,94930.0,0.3608]
[1736340545837,0.052688,94931.0,94930.0,0.005]
[1736340548242,0.0822,94933.0,94926.0,0.00157949]
[1736340548551,0.052687,94932.0,94931.0,0.001]
[1736340549243,0.05269,94927.0,94926.0,0.00157949]
[1736340549442,0.05269,94927.0,94926.0,0.00257949]
[1736340550351,0.05269,94927.0,94926.0,0.00157949]
[1736340551245,0.3608,94932.0,94913.0,0.18891997]
[1736340551450,0.052695,94919.0,94914.0,0.18891997]
[1736340551750,0.0822,94933.0,94918.0,0.3608]
[1736340552050,0.3608,94942.0,94927.0,0.3608]
[1736340552354,0.3608,94942.0,94930.0,0.10661761]
[1736340552559,0.3608,94942.0,94927.0,0.3608]
[1736340552947,0.37986084,94942.0,94932.0,0.052687]
[1736340553560,0.052683,94940.0,94932.0,0.052687]
[1736340554160,0.38146085,94942.0,94932.0,0.052687]
[1736340554460,0.052684,94938.0,94932.0,0.052687]
[1736340554854,0.052685,94937.0,94927.0,0.3618]
[1736340555053,0.052685,94937.0,94928.0,0.052689]
[1736340555253,0.052689,94929.0,94927.0,0.3608]
[1736340555453,0.052689,94929.0,94924.0,0.18891997]
[1736340556055,0.052689,94929.0,94927.0,0.001]
[1736340556255,0.37986084,94942.0,94927.0,0.001]
[1736340556460,0.052685,94936.0,94931.0,0.052688]
[1736340556961,0.019,94938.0,94935.0,0.3608]
[1736340557149,0.019,94938.0,94936.0,0.052685]
[1736340557550,0.0844,94959.0,94937.0,0.1758]
[1736340557764,0.052674,94957.0,94948.0,0.052678]
[1736340557958,0.0844,94959.0,94948.0,0.052678]
[1736340557959,0.052674,94956.0,94948.0,0.052678]
[1736340559054,0.052674,94956.0,94950.0,0.052677]
[1736340559569,0.008,94956.0,94952.0,0.052676]
[1736340559949,0.008,94956.0,94947.0,0.3608]
[1736340560154,0.011,94956.0,94955.0,0.3608]
[1736340560349,0.052666,94971.0,94963.0,0.05267]
[1736340560564,0.052666,94971.0,94955.0,0.3608]
[1736340560565,0.052662,94977.0,94969.0,0.052667]
[1736340560960,0.052663,94976.0,94969.0,0.052667]
[1736340561274,0.01910875,94972.0,94971.0,0.052666]
[1736340561565,0.0928,94979.0,94970.0,0.052666]
[1736340561860,0.007,94972.0,94970.0,0.052666]
[1736340562853,0.007,94972.0,94970.0,0.053666]
[1736340563563,0.016,94972.0,94970.0,0.053666]
[1736340564066,0.015,94972.0,94971.0,0.001]
[1736340564658,0.009,94972.0,94970.0,0.053666]
[1736340564968,0.015,94972.0,94970.0,0.054666]
[1736340565466,0.009,94972.0,94970.0,0.053666]
[1736340565671,0.015,94972.0,94971.0,0.002]
[1736340566259,0.006,94972.0,94971.0,0.001]
[1736340567156,0.11156145,94979.0,94974.0,0.052664]
[1736340567673,0.01876145,94979.0,94977.0,0.052662]
[1736340567869,0.3608,94992.0,94987.0,0.052657]
[1736340568060,0.3608,94992.0,94974.0,0.3608]
[1736340568061,0.0898,94999.0,94991.0,0.3608]
[1736340568262,0.0898,94999.0,94997.0,0.052651]
[1736340568464,0.01914498,94999.0,94997.0,0.052651]
[1736340568768,0.1,95000.0,94998.0,0.05265]
[1736340569669,0.21887816,95010.0,95009.0,0.052645]
[1736340569865,0.21887816,95010.0,95009.0,0.413445]
[1736340570061,0.0897,95025.0,95010.0,0.052643]
[1736340570062,0.052637,95022.0,95010.0,0.052643]
[1736340570267,0.052637,95022.0,95011.0,0.052643]
[1736340570577,0.052638,95021.0,95011.0,0.052643]
[1736340571071,0.052638,95021.0,95012.0,0.052642]
[1736340571567,0.0897,95025.0,95009.0,0.3618]
[1736340571568,0.11986121,95020.0,95009.0,0.3608]
[1736340571761,0.11986121,95020.0,95016.0,0.052641]
[1736340571961,0.11986121,95020.0,95019.0,0.052639]
[1736340573772,0.11986121,95020.0,95010.0,0.052644]
[1736340573773,0.12286121,95020.0,95010.0,0.052644]
[1736340573971,0.052639,95019.0,95011.0,0.052643]
[1736340574174,0.052639,95019.0,95012.0,0.052642]
[1736340574768,0.052639,95019.0,95013.0,0.052642]
[1736340576066,0.05264,95018.0,95013.0,0.052642]
[1736340576277,0.11886121,95020.0,95015.0,0.052641]
[1736340576459,0.001,95019.0,95015.0,0.052641]
[1736340577067,0.11886121,95020.0,95015.0,0.052641]
[1736340577374,0.002,95019.0,95015.0,0.052641]
[1736340577669,0.003,95019.0,95015.0,0.052641]
[1736340577871,0.056639,95019.0,95015.0,0.052641]
[1736340578272,0.052641,95015.0,95007.0,0.052645]
[1736340578475,0.052642,95013.0,95007.0,0.052645]
[1736340578773,0.052648,95003.0,95001.0,0.3608]
[1736340579070,0.0915,95002.0,95001.0,0.3608]
[1736340580675,0.0935,95002.0,95001.0,0.3608]
[1736340582481,0.0945,95002.0,95001.0,0.3608]
[1736340582668,0.11787744,95002.0,95001.0,0.3608]
[1736340582867,0.11587744,95002.0,95001.0,0.3608]
[1736340583068,0.11787744,95002.0,94998.0,0.05265]
[1736340583464,0.11587744,95002.0,94998.0,0.05265]
[1736340583676,0.11787744,95002.0,94998.0,0.05265]
[1736340584679,0.11487744,95002.0,94998.0,0.05265]
[1736340584879,0.11787744,95002.0,94998.0,0.05265]
[1736340585474,0.11687744,95002.0,94998.0,0.05265]
[1736340585674,0.11787744,95002.0,94998.0,0.05265]
[1736340586279,0.11487744,95002.0,94999.0,0.05265]
[1736340586471,0.11787744,95002.0,94999.0,0.05265]
[1736340586666,0.11787744,95002.0,95000.0,0.052649]
[1736340586877,0.02637744,95002.0,95000.0,0.052649]
[1736340587584,0.02537744,95002.0,95000.0,0.052649]
[1736340588074,0.02437744,95002.0,94993.0,0.052653]
[1736340588275,0.02537744,95002.0,94991.0,0.3608]
[1736340588673,0.05265,94999.0,94991.0,0.3608]
[1736340589068,0.05265,94999.0,94991.0,0.413454]
[1736340589274,0.27031356,95009.0,94991.0,0.413454]
[1736340589582,0.27031356,95009.0,94999.0,0.10661761]
[1736340589583,0.052647,95005.0,94999.0,0.10661761]
[1736340589781,0.29472315,95009.0,94995.0,0.052652]
[1736340589975,0.052649,95002.0,94995.0,0.052652]
[1736340590275,0.29472315,95009.0,94992.0,0.052654]
[1736340590781,0.052649,95002.0,94992.0,0.052654]
[1736340591083,0.34736815,95009.0,94998.0,0.05265]
[1736340591283,0.052646,95007.0,94996.0,0.052652]
[1736340591476,0.052646,95007.0,94991.0,0.3608]
[1736340591477,0.052646,95007.0,94997.0,0.052651]
[1736340591873,0.052646,95007.0,94998.0,0.05265]
[1736340592175,0.052646,95007.0,94991.0,0.3608]
[1736340592176,0.17928722,95009.0,94991.0,0.3608]
[1736340592381,0.05265,95000.0,94992.0,0.052654]
[1736340592980,0.052646,95006.0,94996.0,0.052651]
[1736340593480,0.002,95002.0,94996.0,0.052651]
[1736340593694,0.001,95000.0,94996.0,0.052651]
[1736340593873,0.001,95000.0,94997.0,0.052651]
[1736340594286,0.001,95000.0,94998.0,0.05265]
[1736340595275,0.003,95000.0,94998.0,0.05265]
[1736340595886,0.003,95000.0,94999.0,0.3608]
[1736340596077,0.004,95000.0,94999.0,0.3608]
[1736340596881,0.02440959,95009.0,94999.0,0.3608]
[1736340597087,0.0907,95016.0,95014.0,0.052641]
[1736340598181,0.11451227,95016.0,95014.0,0.052641]
[1736340599989,0.11851227,95016.0,95014.0,0.052641]
[1736340600180,0.11851227,95016.0,95008.0,0.3608]
[1736340600487,0.11851227,95016.0,95001.0,0.052649]
[1736340600488,0.052645,95008.0,95001.0,0.052649]
[1736340600788,0.052649,95001.0,94995.0,0.18891997]
[1736340600991,0.3608,95010.0,95000.0,0.3608]
[1736340601573,0.3608,95010.0,95006.0,0.052646]
[1736340601785,0.3608,95010.0,95001.0,0.001]
[1736340602086,0.052645,95008.0,95001.0,0.001]
[1736340602490,0.3608,95010.0,95001.0,0.001]
[1736340602784,0.11451227,95016.0,95014.0,0.052642]
[1736340602983,0.02381227,95016.0,95014.0,0.052642]
[1736340603284,0.052634,95028.0,95017.0,0.05264]
[1736340603477,0.052634,95028.0,95019.0,0.3608]
[1736340604389,0.12380987,95020.0,95019.0,0.3608]
[1736340604893,0.13080987,95020.0,95019.0,0.001]
[1736340605894,0.13280987,95020.0,95019.0,0.001]
[1736340606592,0.18244887,95020.0,95010.0,0.052644]
[1736340606782,0.18244887,95020.0,95018.0,0.3608]
[1736340607587,0.18644887,95020.0,95019.0,0.001]
[1736340607786,0.13380987,95020.0,95019.0,0.001]
[1736340608289,0.13080987,95020.0,95018.0,0.413439]
[1736340608588,0.106,95020.0,95018.0,0.413439]
[1736340608891,0.1,95040.0,95018.0,0.3608]
[1736340609088,0.1,95040.0,95038.0,0.052628]
[1736340609488,0.1,95040.0,95038.0,0.156628]
[1736340609685,0.21887816,95057.0,95056.0,0.052619]
[1736340609886,0.21887816,95057.0,95056.0,0.413419]
[1736340610682,0.1,95060.0,95059.0,0.052617]
[1736340612595,0.103,95060.0,95059.0,0.052617]
[1736340613689,0.11,95060.0,95059.0,0.053617]
[1736340614091,0.162616,95060.0,95059.0,0.001]
[1736340614290,0.11,95060.0,95059.0,0.053617]
[1736340614789,0.11,95060.0,95059.0,0.001]
[1736340618400,0.11,95060.0,95040.0,0.3608]
[1736340618401,0.4708,95060.0,95040.0,0.3608]
[1736340618587,0.052626,95044.0,95040.0,0.3608]
[1736340618797,0.47232,95060.0,95040.0,0.3608]
[1736340618995,0.11,95060.0,95040.0,0.52037392]
[1736340619197,0.11,95060.0,95055.0,0.052619]
[1736340619387,0.11,95060.0,95058.0,0.052617]
[1736340620303,0.103,95060.0,95052.0,0.413421]
[1736340620600,0.103,95060.0,95055.0,0.052619]
[1736340620790,0.1,95060.0,95052.0,0.3608]
[1736340620994,0.1,95060.0,95058.0,0.052617]
[1736340621389,0.107,95060.0,95058.0,0.053617]
[1736340622099,0.107,95060.0,95059.0,0.3608]
[1736340622303,0.154126,95080.0,95059.0,0.3608]
[1736340622304,0.152606,95080.0,95059.0,0.3608]
[1736340622598,0.1,95080.0,95076.0,0.052607]
[1736340623100,0.152605,95080.0,95072.0,0.05261]
[1736340623306,0.18249971,95080.0,95072.0,0.05261]
[1736340623601,0.052606,95079.0,95072.0,0.05261]
[1736340623901,0.3608,95079.0,95071.0,0.3608]
[1736340624107,0.052609,95073.0,95071.0,0.3608]
[1736340624497,0.13889471,95080.0,95071.0,0.3608]
[1736340624707,0.052607,95077.0,95071.0,0.3608]
[1736340624893,0.052609,95074.0,95072.0,0.001]
[1736340625094,0.013,95079.0,95072.0,0.053609]
[1736340625503,0.013,95079.0,95072.0,0.001]
[1736340625905,0.009,95079.0,95077.0,0.052607]
[1736340626503,0.13389471,95080.0,95077.0,0.052607]
[1736340626704,0.14289471,95080.0,95077.0,0.052607]
[1736340627201,0.004,95079.0,95077.0,0.001]
[1736340627405,0.056606,95079.0,95077.0,0.001]
[1736340627610,0.060606,95079.0,95077.0,0.001]
[1736340627808,0.056606,95079.0,95071.0,0.3608]
[1736340628105,0.056606,95079.0,95077.0,0.001]
[1736340628302,0.052606,95079.0,95077.0,0.001]
[1736340628608,0.005,95079.0,95077.0,0.001]
[1736340629506,0.005,95079.0,95075.0,0.052608]
[1736340629708,0.014,95079.0,95077.0,0.001]
[1736340630397,0.009,95079.0,95077.0,0.001]
[1736340630595,0.013,95079.0,95077.0,0.001]
[1736340630794,0.013,95079.0,95075.0,0.001]
[1736340630997,0.065606,95079.0,95075.0,0.001]
[1736340631506,0.065606,95079.0,95077.0,0.001]
[1736340632608,0.052618,95057.0,95047.0,0.413423]
[1736340632809,0.1989,95056.0,95047.0,0.3608]
[1736340633310,0.1989,95056.0,95050.0,0.052622]
[1736340634109,0.052619,95055.0,95047.0,0.3608]
[1736340634299,0.1989,95056.0,95047.0,0.3628]
[1736340634497,0.052621,95051.0,95047.0,0.3628]
[1736340634903,0.1989,95056.0,95047.0,0.3628]
[1736340634904,0.052623,95048.0,95047.0,0.3628]
[1736340635910,0.052628,95039.0,95035.0,0.3608]
[1736340636111,0.10626331,95045.0,95035.0,0.3608]
[1736340636810,0.052629,95037.0,95032.0,0.00157833]
[1736340637106,0.05263,95035.0,95032.0,0.00157833]
[1736340637306,0.1039,95034.0,95032.0,0.00157833]
[1736340638103,0.052631,95033.0,95032.0,0.00157833]
[1736340638296,0.157331,95033.0,95032.0,0.00157833]
[1736340639503,0.158331,95033.0,95032.0,0.00157833]
[1736340640003,0.159331,95033.0,95032.0,0.00157833]
[1736340642409,0.1067,95033.0,95032.0,0.00157833]
[1736340642719,0.002,95033.0,95032.0,0.36237833]
[1736340642906,0.002,95033.0,95032.0,0.56657833]
[1736340644009,0.002,95033.0,95032.0,0.36237833]
[1736340645607,0.002,95033.0,95032.0,0.41501033]
[1736340646008,0.05262,95053.0,95049.0,0.052622]
[1736340646230,0.1067,95060.0,95052.0,0.3608]
[1736340646411,0.052617,95059.0,95052.0,0.3608]
[1736340646814,0.02943366,95060.0,95052.0,0.3608]
[1736340647117,0.46232,95068.0,95058.0,0.052617]
[1736340647118,0.4608,95068.0,95058.0,0.052617]
[1736340647719,0.513412,95068.0,95058.0,0.052617]
[1736340648108,0.54336961,95068.0,95058.0,0.052617]
[1736340648315,0.052613,95066.0,95058.0,0.052617]
[1736340648517,0.49327761,95068.0,95061.0,0.3608]
[1736340648816,0.39175761,95068.0,95063.0,0.052615]
[1736340649014,0.39075761,95068.0,95063.0,0.052615]
[1736340649220,0.39175761,95068.0,95063.0,0.052615]
[1736340649521,0.03095761,95068.0,95063.0,0.052615]
[1736340649916,0.03495761,95068.0,95063.0,0.052615]
[1736340650421,0.03595761,95068.0,95063.0,0.052615]
[1736340650811,0.03595761,95068.0,95061.0,0.3608]
[1736340651008,0.08856961,95068.0,95061.0,0.3608]
[1736340651215,0.03595761,95068.0,95061.0,0.3608]
[1736340651417,0.03695761,95068.0,95062.0,0.052615]
[1736340651810,0.03695761,95068.0,95061.0,0.3608]
[1736340652013,0.08956961,95068.0,95061.0,0.3608]
[1736340652416,0.08456961,95068.0,95061.0,0.3608]
[1736340652720,0.08956961,95068.0,95061.0,0.3608]
[1736340654324,0.08956961,95068.0,95061.0,0.413416]
[1736340654824,0.03695761,95068.0,95061.0,0.3608]
[1736340655014,0.03695761,95068.0,95062.0,0.052615]
[1736340655015,0.03495761,95068.0,95062.0,0.052615]
[1736340655217,0.03695761,95068.0,95062.0,0.052615]
[1736340658622,0.03695761,95068.0,95063.0,0.052615]
[1736340659618,0.03195761,95068.0,95063.0,0.052615]
[1736340659919,0.03695761,95068.0,95063.0,0.052615]
[1736340661019,0.03695761,95068.0,95062.0,0.1035]
[1736340661237,0.08956961,95068.0,95061.0,0.3608]
[1736340661821,0.03695761,95068.0,95061.0,0.3608]
[1736340662027,0.03695761,95068.0,95042.0,0.1021]
[1736340662223,0.03495761,95068.0,95050.0,0.15888531]
[1736340662423,0.03495761,95068.0,95042.0,0.1021]
[1736340662424,0.03695761,95068.0,95061.0,0.3608]
[1736340662630,0.052613,95067.0,95061.0,0.3608]
[1736340662827,0.052613,95066.0,95061.0,0.3608]
[1736340663426,0.03695761,95068.0,95061.0,0.3608]
[1736340663626,0.03195761,95068.0,95064.0,0.052614]
[1736340663824,0.03095761,95068.0,95064.0,0.052614]
[1736340664033,0.03295761,95068.0,95064.0,0.052614]
[1736340664534,0.03295761,95068.0,95061.0,0.3608]
[1736340664730,0.03295761,95068.0,95066.0,0.052613]
[1736340664932,0.11,95089.0,95067.0,0.4714]
[1736340665238,0.21887816,95096.0,95091.0,0.052599]
[1736340665436,0.25625049,95096.0,95095.0,0.3608]
[1736340665642,0.03737233,95096.0,95095.0,0.3608]
[1736340665931,0.2,95100.0,95095.0,0.3608]
[1736340666530,0.009,95096.0,95095.0,0.3618]
[1736340667121,0.24658597,95100.0,95099.0,0.052595]
[1736340667331,0.209,95100.0,95099.0,0.052595]
[1736340667632,0.215,95100.0,95099.0,0.052595]
[1736340667834,0.206,95100.0,95099.0,0.052595]
[1736340669531,0.214,95100.0,95099.0,0.053595]
[1736340669935,0.1101,95119.0,95100.0,0.10626331]
[1736340670237,0.162684,95119.0,95118.0,0.3608]
[1736340670734,0.20048321,95119.0,95118.0,0.3608]
[1736340671033,0.20048321,95119.0,95113.0,0.3608]
[1736340671034,0.052585,95116.0,95113.0,0.3608]
[1736340671422,0.15389921,95119.0,95113.0,0.3608]
[1736340672131,0.20648321,95119.0,95113.0,0.3608]
[1736340672337,0.15389921,95119.0,95113.0,0.3608]
[1736340672533,0.15389921,95119.0,95115.0,0.052586]
[1736340672730,0.15589921,95119.0,95115.0,0.052586]
[1736340673335,0.15489921,95119.0,95118.0,0.001]
[1736340674034,0.15489921,95119.0,95098.0,0.3608]
[1736340674035,0.14789921,95119.0,95115.0,0.001]
[1736340674338,0.05259,95108.0,95098.0,0.3608]
[1736340674831,0.14989921,95119.0,95098.0,0.3608]
[1736340675032,0.052594,95100.0,95092.0,0.3608]
[1736340675238,0.052594,95100.0,95092.0,0.413398]
[1736340675840,0.052591,95106.0,95092.0,0.3608]
[1736340676048,0.052587,95114.0,95106.0,0.052591]
[1736340676263,0.14989921,95119.0,95113.0,0.3608]
[1736340676755,0.20248321,95119.0,95113.0,0.3608]
[1736340676956,0.20548321,95119.0,95118.0,0.001]
[1736340677458,0.052586,95115.0,95113.0,0.3618]
[1736340678160,0.052586,95115.0,95113.0,0.3608]
[1736340678556,0.15189921,95119.0,95113.0,0.3608]
[1736340679150,0.14789921,95119.0,95113.0,0.3608]
[1736340679354,0.004,95115.0,95114.0,0.052586]
[1736340680156,0.008,95115.0,95114.0,0.052586]
[1736340680951,0.004,95115.0,95114.0,0.052586]
[1736340681159,0.004,95115.0,95113.0,0.3618]
[1736340681362,0.056586,95115.0,95113.0,0.3618]
[1736340681556,0.1091,95114.0,95113.0,0.3608]
[1736340682663,0.007,95115.0,95114.0,0.052586]
[1736340684059,0.004,95115.0,95114.0,0.052586]
[1736340684259,0.13687716,95120.0,95117.0,0.052584]
[1736340684459,0.13687716,95120.0,95118.0,0.052584]
[1736340685866,0.13987716,95120.0,95118.0,0.053584]
[1736340686757,0.14387716,95120.0,95118.0,0.053584]
[1736340690068,0.14387716,95120.0,95118.0,0.001]
[1736340690474,0.19646016,95120.0,95118.0,0.001]
[1736340692964,0.19646016,95120.0,95089.0,0.47124]
[1736340692965,0.052585,95116.0,95089.0,0.47124]
[1736340693171,0.10626331,95110.0,95091.0,0.052599]
[1736340693379,0.052592,95104.0,95096.0,0.052596]
[1736340693581,0.1032,95103.0,95096.0,0.413396]
[1736340693963,0.1032,95103.0,95096.0,0.3608]
[1736340694285,0.052594,95100.0,95093.0,0.00157738]
[1736340694671,0.1032,95103.0,95093.0,0.00157738]
[1736340694672,0.052595,95099.0,95093.0,0.00157738]
[1736340695179,0.052595,95098.0,95093.0,0.00157738]
[1736340696781,0.052596,95097.0,95093.0,0.00157738]
[1736340697372,0.052596,95097.0,95096.0,0.3608]
[1736340697871,0.052596,95097.0,95093.0,0.00157738]
[1736340698769,0.052597,95094.0,95093.0,0.00157738]
[1736340700675,0.0526,95089.0,95088.0,0.3608]
[1736340701367,0.0526,95089.0,95078.0,0.3608]
[1736340701368,0.5725,95093.0,95070.0,0.18836807]
[1736340701568,0.3608,95082.0,95070.0,0.18836807]
[1736340701883,0.052606,95078.0,95070.0,0.18836807]
[1736340702784,0.052606,95078.0,95069.0,0.3608]
[1736340703773,0.052606,95078.0,95069.0,0.413411]
[1736340704574,0.03310453,95078.0,95069.0,0.3608]